fUSD/lending_fUSD_20241129
["ID","MTS","AMOUNT","RATE_DAILY","PERIOD"]
[343717903,1732909838336,-21036.51230241,9.988e-05,2]
[343717904,1732909838346,-491.78,9.994e-05,2]
[343717905,1732909838356,-21036.51230241,9.995e-05,2]
[343717906,1732909838365,-646.27,9.998e-05,2]
[343717907,1732909838375,-496.43,9.999e-05,2]
[343717908,1732909838384,-747.92681649,9.999e-05,2]
[343717909,1732909838394,-919.16452072,9.999e-05,2]
[343717910,1732909838403,-480.56891894,9.999e-05,2]
[343717911,1732909838412,-1000.0,9.999e-05,2]
[343717912,1732909838421,-2000.0,9.999e-05,2]
[343717913,1732909838431,-31563.86060754,0.0001,2]
[343717914,1732909838440,-141595.55302226,0.0001,2]
[343717915,1732909838506,-871.1927548,0.0001,2]
[343717919,1732909838610,-666.94650202,0.0001,2]
[343717920,1732909838621,-1294.5281733,0.0001,2]
[343717921,1732909838719,-3517208.85971963,0.0001,2]
[343717922,1732909838728,-1368.08728122,0.0001,2]
[343717923,1732909838738,-1368.08728115,0.0001,2]
[343717924,1732909838747,-1368.08728115,0.0001,2]
[343717925,1732909838756,-1368.08728115,0.0001,2]
[343717926,1732909838766,-1368.08728115,0.0001,2]
[343717927,1732909838775,-1368.08728115,0.0001,2]
[343717928,1732909838784,-1368.08728115,0.0001,2]
[343717929,1732909838794,-1368.08728115,0.0001,2]
[343717930,1732909838803,-1368.08728115,0.0001,2]
[343717931,1732909838816,-19023605.44556445,0.0001,2]
[343717932,1732909838827,-1087.86456815,0.0001,2]
[343717934,1732909841160,-220.64,9.973e-05,2]
[343717935,1732909841170,-1391.97282547,0.0001,2]
[343717936,1732909841180,-1367.70284602,0.0001,2]
[343717940,1732909842944,-17378.06006,0.0001,2]
[343717942,1732909843045,-57896.6059,0.0001,2]
[343717943,1732909843121,-1982.37478592,0.0001,2]
[343717944,1732909843136,-10665.66962603,0.0001,2]
[343717945,1732909843195,-14617.12503788,0.0001,2]
[343717946,1732909843207,-16588.52687807,0.0001,2]
[343717947,1732909843219,-20268.09525692,0.0001,2]
[343717948,1732909843230,-2262.25282708,0.0001,2]
[343717949,1732909843242,-63551.68019535,0.0001,2]
[343717955,1732909846002,-14443.20000023,0.0001,2]
[343717956,1732909846013,-1053.30225682,0.0001,2]
[343717957,1732909846024,-13948.30421877,0.0001,2]
[343717958,1732909846105,-1068.58,0.0001,2]
[343717966,1732910280432,156.37,0.00016658,30]
[343717969,1732910527691,3000.0,0.00017,10]
[343718172,1732910883736,156.37,0.00016658,30]
[343718189,1732911035032,-1056.13,8.219e-05,2]
[343718190,1732911035044,-163.4,8.99e-05,2]
[343718191,1732911035054,-158.86,8.99e-05,2]
[343718192,1732911035063,-1000.0,9.03e-05,2]
[343718193,1732911035074,-250.0,9.032e-05,2]
[343718194,1732911035084,-150.0,9.176e-05,2]
[343718195,1732911035094,-300.0,9.176e-05,2]
[343718196,1732911035104,-475.6309,9.177e-05,2]
[343718197,1732911035114,-3054.8611349,9.177e-05,2]
[343718198,1732911035132,-18924.2755651,9.177e-05,2]
[343718199,1732911035142,-500.0,9.177e-05,2]
[343718200,1732911035152,-3164.0885,9.177e-05,2]
[343718201,1732911035162,-3103.2577,9.177e-05,2]
[343718202,1732911035171,-168.36,9.389e-05,2]
[343718203,1732911035182,-155.86,9.589e-05,2]
[343718204,1732911035193,-400.0,9.589e-05,2]
[343718205,1732911035203,-155.86,9.726e-05,2]
[343718206,1732911035218,-248.6930656,9.8e-05,2]
[343718207,1732911035227,-178.3803,9.8e-05,2]
[343718208,1732911035237,-1975.1302,9.8e-05,2]
[343718209,1732911035246,-8443.14576025,9.8e-05,2]
[343718210,1732911035257,-155.86,9.863e-05,2]
[343718211,1732911035423,-1600.0,9.863e-05,2]
[343718212,1732911035489,-8205.9987,9.9e-05,2]
[343718213,1732911035499,-6189.1331,9.9e-05,2]
[343718214,1732911035509,-2500.0,9.9e-05,2]
[343718215,1732911035518,-42965.9302,9.9e-05,2]
[343718216,1732911035528,-473.3687,9.9e-05,2]
[343718217,1732911035538,-1000.0,9.9e-05,2]
[343718218,1732911035548,-1000.0,9.9e-05,2]
[343718219,1732911035558,-1000.0,9.9e-05,2]
[343718220,1732911035567,-1000.0,9.9e-05,2]
[343718221,1732911035577,-1000.0,9.9e-05,2]
[343718222,1732911035587,-1000.0,9.9e-05,2]
[343718223,1732911035596,-1000.0,9.9e-05,2]
[343718224,1732911035605,-1000.0,9.9e-05,2]
[343718225,1732911035614,-1000.0,9.9e-05,2]
[343718226,1732911035624,-1000.0,9.9e-05,2]
[343718227,1732911035634,-1143.0,9.9e-05,2]
[343718228,1732911035643,-1000.0,9.9e-05,3]
[343718229,1732911035654,-1000.0,9.9e-05,3]
[343718230,1732911035663,-1000.0,9.9e-05,3]
[343718231,1732911035673,-1000.0,9.9e-05,3]
[343718233,1732911035682,-1000.0,9.9e-05,3]
[343718235,1732911035691,-1000.0,9.9e-05,3]
[343718237,1732911035700,-1000.0,9.9e-05,2]
[343718239,1732911035710,-1000.0,9.9e-05,2]
[343718241,1732911035720,-1000.0,9.9e-05,2]
[343718243,1732911035730,-1000.0,9.9e-05,2]
[343718245,1732911035739,-1000.0,9.9e-05,2]
[343718247,1732911035749,-1000.0,9.9e-05,2]
[343718249,1732911035760,-1000.0,9.9e-05,2]
[343718251,1732911035770,-1000.0,9.9e-05,2]
[343718253,1732911035780,-546.0,9.9e-05,3]
[343718255,1732911035791,-1008.0,9.9e-05,2]
[343718257,1732911035801,-1000.0,9.9e-05,2]
[343718259,1732911035811,-500.0,9.973e-05,2]
[343718261,1732911035820,-511.81214025,9.973e-05,2]
[343718263,1732911035830,-500.0,9.973e-05,2]
[343718265,1732911035839,-1723.699,9.984e-05,2]
[343718267,1732911035849,-177.687,9.984e-05,2]
[343718269,1732911035858,-480.56891894,9.999e-05,2]
[343718271,1732911035867,-573.25,9.999e-05,2]
[343718273,1732911035876,-15781.93030377,0.0001,2]
[343718275,1732911035886,-2223520.09884079,0.0001,2]
[343718277,1732911035898,-689.53685026,0.0001,2]
[343718284,1732911036122,-1696.31162149,0.0001,2]
[343718285,1732911036134,-838.86584515,0.0001,2]
[343718286,1732911036243,-888.43182854,0.0001,2]
[343718292,1732911038321,-1998.74873989,0.0001,2]
[343718293,1732911038332,-4833.2743503,0.0001,2]
[343718294,1732911038387,-14953.11003177,0.0001,2]
[343718295,1732911038692,-1953.84826656,0.0001,2]
[343718296,1732911038868,-1341087.87927557,0.0001,2]
[343718297,1732911038878,-503.82,0.0001,2]
[343718298,1732911038888,-21211535.39153893,0.0001,2]
[343718307,1732911041054,-1255.4,0.0001,2]
[343718308,1732911041073,-321.75858078,0.0001,2]
[343718309,1732911041091,-318.03561578,0.0001,2]
[343718310,1732911041709,-9493.6494,0.0001,2]
[343718311,1732911041725,-2123.5946535,0.0001,2]
[343718314,1732911043618,-1338.016879,8.854e-05,2]
[343718315,1732911043627,-1422.12658589,0.0001,2]
[343718317,1732911043639,-5991.67620003,0.0001,2]
[343718319,1732911043689,-6731.15111184,0.0001,2]
[343718320,1732911043751,-146119.22361866,0.0001,2]
[343718326,1732911045972,-161.3,9.563e-05,2]
[343718327,1732911045982,-1642.19999999,0.0001,2]
[343718328,1732911046072,-108257.61312031,0.0001,2]
[343718329,1732911046087,-949.31709125,0.0001,2]
[343718330,1732911046099,-14311.1,0.0001,2]
[343718331,1732911046262,-5560.52325099,0.0001,2]
[343718332,1732911046295,-18863.74035012,0.0001,2]
[343718333,1732911046315,-4054.98171991,0.0001,2]
[343718334,1732911046377,-6227.78817091,0.0001,2]
[343718336,1732911050912,150.0,7.155e-05,2]
[343718337,1732911050933,150.0,7.155e-05,2]
[343718338,1732911050953,150.0,7.155e-05,2]
[343718339,1732911050973,150.0,7.155e-05,2]
[343718340,1732911050993,150.0,7.155e-05,2]
[343718341,1732911051013,150.0,7.155e-05,2]
[343718342,1732911051034,150.0,7.155e-05,2]
[343718343,1732911051055,150.0,7.155e-05,2]
[343718344,1732911051075,150.0,7.155e-05,2]
[343718345,1732911051098,150.0,7.155e-05,2]
[343718346,1732911051119,150.0,7.155e-05,2]
[343718347,1732911051140,150.0,7.155e-05,2]
[343718348,1732911051162,150.0,7.155e-05,2]
[343718349,1732911051183,270.72,7.155e-05,2]
[343718350,1732911051209,33502.73771257,7.155e-05,2]
[343718351,1732911057192,-150.0,7.155e-05,2]
[343718352,1732911057363,-150.0,7.155e-05,2]
[343718353,1732911057671,-150.0,7.155e-05,2]
[343718354,1732911057813,-150.0,7.155e-05,2]
[343718355,1732911057848,-150.0,7.155e-05,2]
[343718356,1732911057923,-150.0,7.155e-05,2]
[343718357,1732911057978,-150.0,7.155e-05,2]
[343718358,1732911058033,-224.54960701,7.155e-05,2]
[343718359,1732911061881,300.0,7.154e-05,2]
[343718360,1732911063046,-150.0,7.155e-05,2]
[343718361,1732911063467,-150.0,7.155e-05,2]
[343718362,1732911063969,-150.0,7.155e-05,2]
[343718363,1732911065274,-150.0,7.155e-05,2]
[343718364,1732911066136,-150.0,7.155e-05,2]
[343718365,1732911066939,-150.0,7.155e-05,2]
[343718366,1732911067507,-150.0,7.155e-05,2]
[343718367,1732911068037,-150.0,7.155e-05,2]
[343718368,1732911069191,-150.0,7.155e-05,2]
[343718369,1732911069774,-150.0,7.155e-05,2]
[343718370,1732911070396,-150.0,7.155e-05,2]
[343718371,1732911070808,-150.0,7.155e-05,2]
[343718372,1732911071925,-150.0,7.155e-05,2]
[343718373,1732911072931,-150.0,7.155e-05,2]
[343718374,1732911074106,-150.0,7.155e-05,2]
[343718375,1732911074600,-150.0,7.155e-05,2]
[343718376,1732911075265,-150.0,7.155e-05,2]
[343718377,1732911075793,-150.0,7.155e-05,2]
[343718378,1732911076597,-150.0,7.155e-05,2]
[343718379,1732911077645,-150.0,7.155e-05,2]
[343718380,1732911078950,-150.0,7.155e-05,2]
[343718381,1732911079799,-150.0,7.155e-05,2]
[343718382,1732911104199,14185.33753522,7.154e-05,2]
[343718391,1732911500200,156.37,0.00016658,30]
[343718409,1732911891648,154.05,6.473e-05,2]
[343718410,1732911932009,252.3677396,6.441e-05,2]
[343718411,1732911955090,4592.90186741,6.94e-05,2]
[343718414,1732912051115,3748.70764901,0.00025999,120]
[343718490,1732912232754,-154.05,7.551e-05,2]
[343718492,1732912232764,-803.52779729,8.089e-05,2]
[343718494,1732912232773,-489.24,8.089e-05,2]
[343718495,1732912232783,-2282.22366005,8.169e-05,2]
[343718496,1732912232795,-1461.62303822,8.169e-05,2]
[343718497,1732912232826,-4818.40330173,8.169e-05,2]
[343718498,1732912232841,-337.43559343,8.189e-05,2]
[343718499,1732912232852,-515.733011,8.189e-05,2]
[343718500,1732912232864,-425.67139557,8.189e-05,2]
[343718501,1732912232874,-97.4940585,8.189e-05,2]
[343718502,1732912232890,-186.3159415,8.189e-05,2]
[343718503,1732912232900,-300.0,8.192e-05,2]
[343718504,1732912232909,-886.61392249,8.193e-05,2]
[343718505,1732912232961,-4460.99607751,8.193e-05,2]
[343718506,1732912232970,-84.12017182,8.2e-05,2]
[343718507,1732912233027,-215.87982818,8.2e-05,2]
[343718508,1732912233037,-1142.61,8.219e-05,2]
[343718509,1732912233047,-163.09,8.274e-05,2]
[343718510,1732912233057,-187.0,8.274e-05,2]
[343718511,1732912233073,-3739.73,8.38e-05,2]
[343718512,1732912233083,-23900.0,8.402e-05,2]
[343718513,1732912233093,-2000.0,8.447e-05,2]
[343718514,1732912233103,-250.0,8.506e-05,2]
[343718515,1732912233113,-1410.46,8.534e-05,2]
[343718516,1732912233123,-154.05,8.63e-05,2]
[343718517,1732912233132,-166.63,8.788e-05,2]
[343718518,1732912233143,-250.0,8.904e-05,2]
[343718519,1732912233153,-1419.804,8.999e-05,2]
[343718520,1732912233162,-150.0,8.999e-05,2]
[343718521,1732912233172,-95595.46292182,9e-05,2]
[343718522,1732912233204,-95475.63371629,9e-05,2]
[343718523,1732912233215,-6954.57384292,9e-05,2]
[343718527,1732912238560,-803.52779727,8.129e-05,2]
[343718528,1732912238571,-303650.76951897,9e-05,2]
[343718529,1732912238581,-2147.0,9e-05,2]
[343718530,1732912238596,-8347.33513915,9e-05,2]
[343718531,1732912238606,-420.0,9.011e-05,2]
[343718532,1732912238615,-374.23,9.019e-05,2]
[343718533,1732912238625,-1000.0,9.148e-05,2]
[343718534,1732912238635,-307.15,9.178e-05,2]
[343718535,1732912238644,-150.0,9.578e-05,2]
[343718536,1732912238653,-150.0,9.578e-05,2]
[343718537,1732912238665,-150.0,9.578e-05,2]
[343718538,1732912238676,-434.7,9.578e-05,2]
[343718540,1732912238685,-150.0,9.578e-05,2]
[343718542,1732912238694,-363.71,9.578e-05,2]
[343718543,1732912238704,-434.7,9.578e-05,2]
[343718544,1732912238713,-150.0,9.578e-05,2]
[343718545,1732912238722,-150.0,9.578e-05,2]
[343718546,1732912238731,-150.0,9.578e-05,2]
[343718547,1732912238741,-363.71,9.578e-05,2]
[343718548,1732912238750,-150.0,9.578e-05,2]
[343718549,1732912238760,-150.0,9.578e-05,2]
[343718550,1732912238769,-150.0,9.578e-05,2]
[343718551,1732912238780,-434.7,9.578e-05,2]
[343718552,1732912238789,-150.0,9.578e-05,2]
[343718553,1732912238799,-363.71,9.578e-05,2]
[343718554,1732912238808,-150.0,9.578e-05,2]
[343718555,1732912238820,-434.7,9.578e-05,2]
[343718556,1732912238829,-363.71,9.578e-05,2]
[343718557,1732912238838,-150.0,9.578e-05,2]
[343718558,1732912238847,-150.0,9.578e-05,2]
[343718559,1732912238857,-150.0,9.578e-05,2]
[343718560,1732912238866,-150.0,9.578e-05,2]
[343718561,1732912238875,-150.0,9.578e-05,2]
[343718562,1732912238885,-434.7,9.578e-05,2]
[343718563,1732912238894,-150.0,9.578e-05,2]
[343718564,1732912238903,-150.0,9.578e-05,2]
[343718565,1732912238913,-363.71,9.578e-05,2]
[343718566,1732912238922,-363.71,9.578e-05,2]
[343718567,1732912238932,-363.71,9.578e-05,2]
[343718568,1732912238950,-155.86,9.589e-05,2]
[343718569,1732912238968,-400.0,9.589e-05,2]
[343718570,1732912238987,-150.99,9.67e-05,2]
[343718571,1732912239007,-434.7,9.678e-05,2]
[343718572,1732912239023,-150.0,9.678e-05,2]
[343718573,1732912239042,-150.0,9.678e-05,2]
[343718574,1732912239061,-434.7,9.678e-05,2]
[343718575,1732912239082,-150.0,9.678e-05,2]
[343718576,1732912239101,-150.0,9.678e-05,2]
[343718577,1732912239119,-150.0,9.678e-05,2]
[343718578,1732912239138,-434.7,9.678e-05,2]
[343718579,1732912239153,-150.0,9.678e-05,2]
[343718580,1732912239171,-363.71,9.678e-05,2]
[343718581,1732912239186,-363.71,9.678e-05,2]
[343718582,1732912239203,-150.0,9.678e-05,2]
[343718583,1732912239219,-434.7,9.678e-05,2]
[343718584,1732912239234,-150.0,9.678e-05,2]
[343718585,1732912239256,-154.05,9.709e-05,2]
[343718586,1732912239272,-150.0,9.728e-05,2]
[343718587,1732912239288,-150.0,9.736e-05,2]
[343718588,1732912239304,-150.0,9.756e-05,2]
[343718589,1732912239320,-155.86,9.763e-05,2]
[343718590,1732912239334,-150.0,9.785e-05,2]
[343718591,1732912239350,-150.0,9.798e-05,2]
[343718592,1732912239366,-1600.0,9.863e-05,2]
[343718593,1732912239381,-255.0,9.899e-05,2]
[343718594,1732912239397,-1000.0,9.9e-05,2]
[343718595,1732912239414,-18325.4177,9.9e-05,2]
[343718596,1732912239429,-7007.6206,9.9e-05,2]
[343718597,1732912239445,-150.0,9.906e-05,2]
[343718598,1732912239461,-150.0,9.911e-05,2]
[343718599,1732912239476,-587.0,9.912e-05,2]
[343718600,1732912239491,-150.0,9.916e-05,2]
[343718601,1732912239506,-150.0,9.924e-05,2]
[343718602,1732912239521,-155.86,9.938e-05,2]
[343718603,1732912239537,-150.52547463,9.968e-05,2]
[343718604,1732912239552,-200.0,9.971e-05,2]
[343718605,1732912239568,-159.85848787,9.973e-05,2]
[343718606,1732912239587,-500.0,9.973e-05,2]
[343718607,1732912239605,-507.04250113,9.973e-05,2]
[343718608,1732912239622,-500.0,9.973e-05,2]
[343718609,1732912239639,-200.0,9.973e-05,2]
[343718610,1732912239656,-200.0,9.977e-05,2]
[343718611,1732912239675,-150.0,9.979e-05,2]
[343718612,1732912239692,-200.0,9.988e-05,2]
[343718613,1732912239707,-157.47866144,9.99e-05,2]
[343718614,1732912239723,-157.47866141,9.99e-05,2]
[343718615,1732912239739,-157.47866141,9.99e-05,2]
[343718616,1732912239755,-2606.3355144,9.998e-05,2]
[343718617,1732912239770,-235.62948377,9.999e-05,2]
[343718618,1732912239785,-900.0,9.999e-05,2]
[343718619,1732912239800,-644.32,9.999e-05,2]
[343718620,1732912239816,-1812303.75347627,0.0001,2]
[343718621,1732912239833,-7890.96515189,0.0001,2]
[343718622,1732912239849,-1368.08728122,0.0001,2]
[343718623,1732912239865,-1368.08728115,0.0001,2]
[343718624,1732912239881,-1368.08728115,0.0001,2]
[343718625,1732912239898,-1368.08728115,0.0001,2]
[343718626,1732912239914,-1368.08728115,0.0001,2]
[343718627,1732912239929,-1368.08728115,0.0001,2]
[343718628,1732912239944,-1368.08728115,0.0001,2]
[343718629,1732912239960,-1368.08728115,0.0001,2]
[343718630,1732912239976,-1368.08728115,0.0001,2]
[343718631,1732912239992,-19012322.19917897,0.0001,2]
[343718632,1732912240012,-1799.59999998,0.0001,2]
[343718633,1732912240098,-502.0,0.0001,2]
[343718634,1732912240118,-1634.62454985,0.0001,2]
[343718635,1732912240138,-301.91055826,0.0001,2]
[343718636,1732912240159,-601.00535559,0.0001,2]
[343718637,1732912241301,-1109.76612253,0.0001,2]
[343718638,1732912241312,-487.52986203,0.0001,2]
[343718639,1732912241325,-981.39402762,0.0001,2]
[343718640,1732912241366,-16149.0561489,0.0001,2]
[343718641,1732912242603,-590.8338015,0.0001,2]
[343718642,1732912242614,-1256.5358145,0.0001,2]
[343718679,1732912244094,-803.52779727,8.169e-05,2]
[343718680,1732912244104,-94772.13546609,0.0001,2]
[343718681,1732912244349,-434.7,9.678e-05,2]
[343718682,1732912244359,-150.0,9.678e-05,2]
[343718683,1732912244368,-3306.10868341,0.0001,2]
[343718684,1732912244627,-150.0,9.678e-05,2]
[343718685,1732912244638,-21667.3157125,0.0001,2]
[343718686,1732912246217,-705.23,9.591e-05,2]
[343718687,1732912246227,-363.71,9.678e-05,2]
[343718688,1732912246237,-171.857645,9.996e-05,2]
[343718689,1732912246246,-11.6139031,0.0001,2]
[343718690,1732912246258,-2371.9862946,0.0001,2]
[343718691,1732912246403,-10681.19235229,0.0001,2]
[343718692,1732912246478,-29315.66146265,0.0001,2]
[343718693,1732912307892,5360.0,0.00017,10]
[343718694,1732912363674,156.37,0.00016658,30]
[343718698,1732912592119,161.51,7.087e-05,2]
[343718699,1732912864948,280.0,0.00017,10]
[343718700,1732913069123,156.72,0.00016658,30]
[343718701,1732913079067,150.0,0.0001,5]
[343718702,1732913198993,-1285.84,8.219e-05,2]
[343718703,1732913199015,-158.46,8.219e-05,2]
[343718704,1732913199037,-250.0,8.754e-05,2]
[343718705,1732913199058,-1457.15,8.759e-05,2]
[343718706,1732913199080,-300.0,8.766e-05,2]
[343718707,1732913199103,-608.55,8.767e-05,2]
[343718717,1732913243153,-4060.0,8.767e-05,2]
[343718720,1732913315220,1351.0,0.000265,120]
[343718721,1732913344675,161.51,6.941e-05,2]
[343718723,1732913432338,-550.99707701,8.219e-05,2]
[343718724,1732913432392,-451.60210452,8.219e-05,2]
[343718725,1732913432449,-296.67081847,8.219e-05,2]
[343718726,1732913432459,-250.0,8.676e-05,2]
[343718727,1732913432469,-521.83,8.679e-05,2]
[343718728,1732913432479,-206.49918153,8.713e-05,2]
[343718729,1732913432491,-43.50081847,8.713e-05,2]
[343718730,1732913432500,-299.38,8.713e-05,2]
[343718731,1732913432509,-835.6,8.749e-05,2]
[343718732,1732913432519,-1970.41112368,8.767e-05,2]
[343718733,1732913432599,-517.70100977,8.767e-05,2]
[343718734,1732913432612,-2182.75526859,8.767e-05,2]
[343718735,1732913432624,-239.03259796,8.767e-05,2]
[343718736,1732913432634,-161.33,8.783e-05,2]
[343718737,1732913432643,-145.84751208,8.822e-05,2]
[343718738,1732913432694,-4.15248792,8.822e-05,2]
[343718739,1732913432714,-150.0,8.86e-05,2]
[343718740,1732913432724,-235.62948377,8.899e-05,2]
[343718741,1732913432734,-150.0,8.899e-05,2]
[343718742,1732913432743,-300.0,8.899e-05,2]
[343718743,1732913432753,-15.63201051,8.9e-05,2]
[343718744,1732913432790,-6991.98858949,8.9e-05,2]
[343718745,1732913432799,-2663.6308,8.9e-05,2]
[343718746,1732913432809,-6829.80248561,8.9e-05,2]
[343718747,1732913432820,-4884.5,8.9e-05,2]
[343718748,1732913432833,-6611.11521439,8.9e-05,2]
[343718750,1732913432843,-259.97,8.902e-05,2]
[343718751,1732913432852,-1000.0,8.912e-05,2]
[343718752,1732913432862,-150.0,8.948e-05,2]
[343718753,1732913432872,-150.0,8.948e-05,2]
[343718754,1732913432882,-354.1,8.948e-05,2]
[343718755,1732913432892,-363.71,8.948e-05,2]
[343718756,1732913432902,-152.44521893,9e-05,2]
[343718757,1732913432911,-181.42,9.05e-05,2]
[343718758,1732913432921,-434.7,9.108e-05,2]
[343718759,1732913432930,-150.0,9.108e-05,2]
[343718760,1732913432940,-363.71,9.108e-05,2]
[343718761,1732913432951,-150.0,9.108e-05,2]
[343718762,1732913432963,-500.0,9.123e-05,2]
[343718763,1732913432973,-161.15,9.138e-05,2]
[343718764,1732913432982,-434.7,9.178e-05,2]
[343718765,1732913432992,-363.71,9.178e-05,2]
[343718766,1732913433003,-150.0,9.178e-05,2]
[343718767,1732913433013,-150.0,9.178e-05,2]
[343718768,1732913433022,-150.0,9.178e-05,2]
[343718769,1732913433037,-434.7,9.178e-05,2]
[343718770,1732913433047,-363.71,9.178e-05,2]
[343718771,1732913433057,-150.0,9.178e-05,2]
[343718772,1732913433067,-434.7,9.178e-05,2]
[343718773,1732913433076,-150.0,9.178e-05,2]
[343718774,1732913433086,-150.0,9.178e-05,2]
[343718775,1732913433097,-434.7,9.178e-05,2]
[343718776,1732913433106,-150.0,9.178e-05,2]
[343718777,1732913433116,-150.0,9.178e-05,2]
[343718778,1732913433126,-508.55,9.545e-05,2]
[343718779,1732913433136,-497.71,9.552e-05,2]
[343718780,1732913433146,-493.17,9.552e-05,2]
[343718781,1732913433156,-363.71,9.578e-05,2]
[343718782,1732913433166,-400.0,9.589e-05,2]
[343718783,1732913433176,-155.86,9.589e-05,2]
[343718784,1732913433186,-150.0,9.59e-05,2]
[343718785,1732913433195,-8384.4,9.67e-05,2]
[343718786,1732913433205,-434.7,9.678e-05,2]
[343718787,1732913433214,-150.0,9.678e-05,2]
[343718788,1732913433224,-150.0,9.678e-05,2]
[343718789,1732913433235,-150.52547463,9.763e-05,2]
[343718790,1732913433244,-155.86,9.763e-05,2]
[343718791,1732913433254,-150.0,9.766e-05,2]
[343718792,1732913433265,-255.0,9.789e-05,2]
[343718793,1732913433276,-5454.0,9.801e-05,2]
[343718794,1732913433287,-299.38,9.802e-05,2]
[343718795,1732913433297,-150.0,9.827e-05,2]
[343718796,1732913433307,-150.0,9.829e-05,2]
[343718797,1732913433317,-1600.0,9.863e-05,2]
[343718798,1732913433326,-150.0,9.892e-05,2]
[343718799,1732913433338,-150.0,9.893e-05,2]
[343718800,1732913433348,-962.5940921,9.9e-05,2]
[343718801,1732913433560,-1327.84857577,9.9e-05,2]
[343718841,1732913439057,-209.55733213,9.9e-05,2]
[343718842,1732913439067,-1000.0,9.9e-05,2]
[343718843,1732913439076,-150.0,9.936e-05,2]
[343718844,1732913439086,-155.86,9.938e-05,2]
[343718845,1732913439097,-150.0,9.949e-05,2]
[343718846,1732913439106,-200.0,9.973e-05,2]
[343718847,1732913439116,-159.85848787,9.973e-05,2]
[343718848,1732913439126,-500.0,9.973e-05,2]
[343718849,1732913439135,-507.04250113,9.973e-05,2]
[343718850,1732913439144,-500.0,9.973e-05,2]
[343718851,1732913439154,-150.0,9.973e-05,2]
[343718852,1732913439164,-200.0,9.973e-05,2]
[343718853,1732913439173,-1135.843,9.98e-05,2]
[343718854,1732913439183,-200.0,9.983e-05,2]
[343718855,1732913439193,-200.0,9.988e-05,2]
[343718856,1732913439202,-150.0,9.991e-05,2]
[343718857,1732913439212,-200.0,9.994e-05,2]
[343718858,1732913439222,-154.772854,9.996e-05,2]
[343718859,1732913439231,-162.380899,9.996e-05,2]
[343718860,1732913439241,-707.410446,9.996e-05,2]
[343718861,1732913439250,-707.410446,9.997e-05,2]
[343718862,1732913439261,-707.410446,9.997e-05,2]
[343718863,1732913439271,-900.0,9.999e-05,2]
[343718864,1732913439280,-644.32,9.999e-05,2]
[343718865,1732913439290,-2000.0,9.999e-05,2]
[343718866,1732913439299,-154.772854,9.999e-05,2]
[343718867,1732913439309,-154.772854,9.999e-05,2]
[343718868,1732913439319,-154.772854,9.999e-05,2]
[343718869,1732913439328,-162.380899,9.999e-05,2]
[343718870,1732913439337,-162.380899,9.999e-05,2]
[343718871,1732913439347,-162.380899,9.999e-05,2]
[343718872,1732913439356,-707.410446,9.999e-05,2]
[343718873,1732913439366,-707.410446,9.999e-05,2]
[343718874,1732913439375,-707.410446,9.999e-05,2]
[343718875,1732913439384,-707.410446,9.999e-05,2]
[343718876,1732913439394,-707.410446,9.999e-05,2]
[343718877,1732913439403,-707.410446,9.999e-05,2]
[343718878,1732913439413,-707.410446,9.999e-05,2]
[343718879,1732913439423,-707.410446,9.999e-05,2]
[343718880,1732913439433,-707.410446,9.999e-05,2]
[343718881,1732913439443,-707.410446,9.999e-05,2]
[343718882,1732913439453,-7890.96515189,0.0001,2]
[343718883,1732913439463,-2485496.29905404,0.0001,2]
[343718884,1732913439473,-496.47,0.0001,2]
[343718885,1732913439483,-19714846.44202204,0.0001,2]
[343718886,1732913439495,-417.64908823,0.0001,2]
[343718887,1732913439582,-13157.861482,0.0001,2]
[343718888,1732913439613,-5486.46781935,0.0001,2]
[343718894,1732913440953,-1981.62499995,9.9e-05,2]
[343718895,1732913441131,-1198.75095555,9.9e-05,2]
[343718896,1732913441184,-1141.4167445,9.9e-05,2]
[343718897,1732913441194,-4312.3676555,0.0001,2]
[343718899,1732913443275,-1091.66958425,0.0001,2]
[343718900,1732913443287,-1208.719407,0.0001,2]